bitfinex/quotes_BTCUSD_20220303
["timestamp","ask_amount","ask_price","bid_price","bid_amount"]
[1646341829331,0.00157971,42095.0,42088.0,2.65804076]
[1646341829332,0.00157971,42095.0,42088.0,0.362558]
[1646341829528,0.00052657,42095.0,42090.0,0.362558]
[1646341829728,0.0021,42105.0,42090.0,0.2162747]
[1646341829929,0.0021,42105.0,42091.0,0.32235808]
[1646341830131,0.0021,42105.0,42092.0,0.19179372]
[1646341830329,0.0021,42105.0,42093.0,0.362558]
[1646341830330,0.00013166,42095.0,42093.0,0.362558]
[1646341830529,0.00039498,42095.0,42094.0,0.502558]
[1646341830929,0.00026332,42095.0,42094.0,0.48482378]
[1646341831169,0.01397,42105.0,42094.0,0.362558]
[1646341831170,0.0021,42105.0,42094.0,0.362558]
[1646341831370,0.15999084,42101.0,42096.0,0.16998769]
[1646341831575,0.0021,42105.0,42093.0,0.09337029]
[1646341831769,0.00012765,42097.0,42093.0,0.09337029]
[1646341831972,0.00012765,42097.0,42094.0,0.35]
[1646341832770,0.16259767,42104.0,42090.0,0.15733079]
[1646341832969,0.16259767,42104.0,42094.0,0.11254096]
[1646341833669,0.16259767,42104.0,42095.0,0.18151647]
[1646341833869,0.16259767,42104.0,42094.0,0.11254096]
[1646341834469,0.16259767,42104.0,42095.0,0.31956388]
[1646341834672,0.16259767,42104.0,42091.0,0.31956388]
[1646341834919,0.16259767,42104.0,42097.0,0.210588]
[1646341835520,0.00147634,42105.0,42097.0,0.210588]
[1646341835720,0.00147634,42105.0,42098.0,0.12015886]
[1646341835920,0.00147634,42105.0,42098.0,0.12028077]
[1646341836121,0.00165335,42105.0,42098.0,0.12028077]
[1646341836322,0.00200737,42105.0,42098.0,0.12052459]
[1646341836522,0.00887737,42108.0,42098.0,0.12052459]
[1646341836924,0.00887737,42108.0,42098.0,0.00024382]
[1646341836925,0.362558,42107.0,42098.0,0.00024382]
[1646341837124,0.00887737,42108.0,42098.0,0.20245464]
[1646341837323,0.362558,42107.0,42098.0,0.20245464]
[1646341837623,0.16755772,42105.0,42098.0,0.20245464]
[1646341837823,0.16755772,42105.0,42097.0,0.210588]
[1646341838022,0.16755772,42105.0,42097.0,0.32277352]
[1646341838877,0.16755772,42105.0,42097.0,0.11218552]
[1646341839078,0.16755772,42105.0,42087.0,0.32255588]
[1646341839478,0.17055772,42105.0,42092.0,0.002]
[1646341839977,0.17055772,42105.0,42096.0,0.1679077]
[1646341840181,0.07055772,42105.0,42096.0,0.16803094]
[1646341840378,0.003,42105.0,42096.0,0.16803094]
[1646341840579,0.003,42105.0,42096.0,0.16827742]
[1646341840779,0.14319956,42107.0,42096.0,0.16827742]
[1646341840780,0.11937956,42107.0,42096.0,0.16827742]
[1646341841180,0.11902606,42107.0,42096.0,0.16803094]
[1646341841380,0.20260913,42105.0,42096.0,0.1679077]
[1646341841579,0.20260913,42105.0,42099.0,0.00012323]
[1646341841783,0.06259976,42107.0,42099.0,0.00012323]
[1646341841980,0.05795328,42107.0,42099.0,0.00036969]
[1646341842438,0.05777652,42107.0,42099.0,0.00024646]
[1646341842640,0.05459976,42107.0,42099.0,0.00012323]
[1646341842838,0.02382,42106.0,42092.0,0.09713388]
[1646341843039,0.21608555,42102.0,42094.0,0.19287145]
[1646341843238,0.05473124,42107.0,42094.0,0.19287145]
[1646341843439,0.05488536,42107.0,42092.0,0.09713388]
[1646341843638,0.1273281,42107.0,42093.0,0.21066803]
[1646341843841,0.1273281,42107.0,42086.0,0.39599976]
[1646341843842,0.31896754,42106.0,42086.0,0.05321222]
[1646341844039,0.34278754,42106.0,42086.0,0.05321222]
[1646341844238,0.31896754,42106.0,42086.0,0.05321222]
[1646341844443,0.20888998,42098.0,42082.0,0.74362135]
[1646341844741,0.72932554,42097.0,42082.0,0.5]
[1646341845139,0.72932554,42097.0,42081.0,0.13138944]
[1646341845542,0.243699,42090.0,42087.0,0.005992]
[1646341845744,0.362558,42089.0,42087.0,0.005992]
[1646341846773,0.362558,42089.0,42087.0,0.002992]
[1646341847075,0.243699,42088.0,42087.0,0.002992]
[1646341847672,0.362558,42092.0,42088.0,0.09909833]
[1646341848071,0.362558,42092.0,42086.0,0.00036981]
[1646341848273,0.31896754,42091.0,42086.0,0.00036981]
[1646341848472,0.291499,42090.0,42086.0,0.00024654]
[1646341848672,0.291499,42090.0,42071.0,0.1842405]
[1646341848874,0.291499,42090.0,42086.0,0.00012327]
[1646341849472,0.291499,42090.0,42086.0,0.00036981]
[1646341849919,0.291499,42090.0,42086.0,0.00024654]
[1646341850123,0.291499,42090.0,42086.0,0.00012327]
[1646341850320,0.19106977,42082.0,42078.0,0.71296]
[1646341850620,0.31896754,42081.0,42068.0,0.06608435]
[1646341850820,0.0478,42080.0,42068.0,0.06608435]
[1646341851221,0.0478,42080.0,42076.0,0.12231297]
[1646341851520,0.362558,42079.0,42076.0,0.12231297]
[1646341854875,0.362558,42079.0,42077.0,0.0748831]
[1646341855073,0.362558,42079.0,42076.0,0.12231297]
[1646341855876,0.362558,42083.0,42076.0,0.12231297]
[1646341857424,0.362558,42083.0,42076.0,0.19265524]
[1646341857824,0.362558,42083.0,42077.0,0.00012303]
[1646341858323,0.362558,42083.0,42077.0,0.00036909]
[1646341858922,0.362558,42083.0,42077.0,0.00024606]
[1646341859124,0.362558,42083.0,42077.0,0.00012303]
[1646341859322,0.362558,42083.0,42078.0,0.00012303]
[1646341859722,0.362558,42083.0,42078.0,0.00024606]
[1646341859925,0.362558,42083.0,42078.0,0.00036909]
[1646341860324,0.362558,42083.0,42078.0,0.00024606]
[1646341860524,0.362558,42083.0,42076.0,0.12231297]
[1646341861472,0.362558,42083.0,42076.0,0.12331297]
[1646341861974,0.362558,42083.0,42076.0,0.001]
[1646341862772,0.362558,42083.0,42073.0,0.19208796]
[1646341862976,1.445749,42088.0,42074.0,0.71296]
[1646341863175,0.243699,42087.0,42074.0,0.712858]
[1646341863374,0.362558,42083.0,42076.0,0.11813195]
[1646341863674,0.362558,42083.0,42076.0,0.17356555]
[1646341865122,0.362558,42083.0,42077.0,0.0001233]
[1646341865418,0.362558,42083.0,42077.0,0.0002466]
[1646341865419,0.364558,42083.0,42077.0,0.0002466]
[1646341865623,0.364558,42083.0,42077.0,0.0003699]
[1646341866019,0.364558,42083.0,42077.0,0.0002466]
[1646341866219,0.364558,42083.0,42076.0,0.17356555]
[1646341866418,0.364558,42083.0,42081.0,0.21648575]
[1646341867321,1.3385,42088.0,42078.0,0.00036987]
[1646341867523,0.003,42083.0,42078.0,0.00024658]
[1646341867722,0.003,42083.0,42076.0,0.17356555]
[1646341867920,0.003,42083.0,42077.0,0.1647595]
[1646341868320,0.362558,42082.0,42080.0,0.17042506]
[1646341868777,0.362558,42087.0,42080.0,0.17042506]
[1646341869477,0.364558,42087.0,42080.0,0.17042506]
[1646341870478,0.362158,42087.0,42080.0,0.17042506]
[1646341870679,0.360158,42087.0,42080.0,0.17042506]
[1646341871380,0.003,42087.0,42081.0,0.31896754]
[1646341871579,0.003,42087.0,42080.0,0.17042506]
[1646341871779,0.003,42087.0,42081.0,0.71301]
[1646341872422,0.003,42087.0,42086.0,0.05563654]
[1646341872623,0.003,42087.0,42086.0,0.17790232]
[1646341872827,0.362584,42094.0,42086.0,0.12226578]
[1646341873022,0.362584,42094.0,42084.0,0.12840609]
[1646341873224,0.362584,42094.0,42084.0,0.10525609]
[1646341874424,0.362584,42094.0,42087.0,0.19384601]
[1646341874425,0.57167463,42094.0,42087.0,0.19384601]
[1646341874625,0.362584,42094.0,42087.0,0.19384601]
[1646341874828,0.25767,42098.0,42087.0,0.19384601]
[1646341875025,0.362584,42097.0,42088.0,0.31760762]
[1646341875225,0.362584,42097.0,42092.0,0.12226578]
[1646341875428,0.362584,42097.0,42096.0,0.12226578]
[1646341875626,0.190965,42101.0,42096.0,0.12226578]
[1646341875826,0.362584,42099.0,42091.0,0.10943011]
[1646341876092,0.362584,42102.0,42095.0,0.12226578]
[1646341876296,0.362584,42102.0,42091.0,0.10943011]
[1646341876591,0.362584,42102.0,42087.0,0.003]
[1646341876793,0.362584,42101.0,42087.0,0.003]
[1646341876991,0.21320171,42099.0,42092.0,0.17320089]
[1646341877191,0.241269,42098.0,42096.0,0.12226578]
[1646341877392,0.21320171,42099.0,42097.0,0.12226578]
[1646341877591,0.362584,42098.0,42087.0,0.103]
[1646341877791,0.57578571,42099.0,42091.0,0.12226578]
[1646341877996,0.57578571,42099.0,42095.0,0.12226578]
[1646341877997,0.241269,42098.0,42095.0,0.12226578]
[1646341878191,0.241269,42098.0,42097.0,0.12226578]
[1646341881428,0.244269,42098.0,42097.0,0.12226578]
[1646341881630,0.003,42098.0,42097.0,0.12226578]
[1646341882631,0.003,42098.0,42097.0,0.29461456]
[1646341882832,0.362584,42103.0,42097.0,0.29461456]
[1646341883138,0.059423,42104.0,42090.0,0.31760762]
[1646341884176,0.362584,42101.0,42095.0,0.20755195]
[1646341884376,0.362584,42103.0,42095.0,0.20755195]
[1646341885480,0.366584,42103.0,42097.0,0.00012472]
[1646341885878,0.366584,42103.0,42097.0,0.00024944]
[1646341886078,0.366584,42103.0,42097.0,0.00037416]
[1646341886479,0.366584,42103.0,42097.0,0.00024944]
[1646341886678,0.362584,42103.0,42095.0,0.33589443]
[1646341886878,0.362584,42103.0,42098.0,0.00012472]
[1646341887077,0.241269,42102.0,42098.0,0.00012472]
[1646341887322,0.241269,42102.0,42098.0,0.00024944]
[1646341887526,0.241269,42102.0,42098.0,0.00037416]
[1646341887925,0.241269,42102.0,42101.0,0.12226578]
[1646341888524,0.241269,42102.0,42095.0,0.12834248]
[1646341888723,0.362584,42103.0,42099.0,0.12226578]
[1646341888924,0.56406083,42107.0,42099.0,0.18133531]
[1646341889123,0.362584,42106.0,42099.0,0.18133531]
[1646341889523,0.362584,42106.0,42095.0,0.12834248]
[1646341889923,0.5666,42107.0,42097.0,0.06478169]
[1646341890124,0.56681104,42107.0,42097.0,0.06478169]
[1646341890424,0.56691656,42107.0,42097.0,0.06478169]
[1646341890723,0.15544071,42106.0,42097.0,0.06478169]
[1646341890929,0.362584,42105.0,42097.0,0.06478169]
[1646341891400,0.362584,42105.0,42095.0,0.12834248]
[1646341891600,0.362584,42105.0,42097.0,0.19684711]
[1646341892401,0.362584,42105.0,42097.0,0.25201234]
[1646341892602,0.362584,42105.0,42099.0,0.00012471]
[1646341893002,0.362584,42105.0,42099.0,0.00024942]
[1646341893206,0.362584,42105.0,42099.0,0.00037413]
[1646341893403,0.56398526,42107.0,42099.0,0.00037413]
[1646341893607,0.56398526,42107.0,42099.0,0.00024942]
[1646341893608,0.56385684,42107.0,42099.0,0.00024942]
[1646341893904,0.5636,42107.0,42103.0,0.12226578]
[1646341894103,0.2333,42108.0,42106.0,0.31371092]
[1646341894303,0.0453212,42110.0,42107.0,0.12226578]
[1646341894505,0.0001394,42107.0,42106.0,0.19144514]
[1646341894705,0.0002788,42107.0,42106.0,0.12226578]
[1646341895227,0.0002788,42107.0,42106.0,0.4398734]
[1646341895430,0.0413212,42110.0,42106.0,0.80235877]
[1646341895630,0.0413212,42110.0,42106.0,1.80395969]
[1646341895631,0.003,42107.0,42106.0,1.80395969]
[1646341895829,0.003,42107.0,42106.0,1.92612684]
[1646341896232,0.003,42107.0,42106.0,1.56354284]
[1646341896828,0.00035362,42109.0,42106.0,1.58736284]
[1646341897128,0.0413212,42110.0,42109.0,0.362584]
[1646341897335,0.0413212,42110.0,42109.0,1.51489877]
[1646341897729,0.0011,42112.0,42110.0,0.9]
[1646341897931,0.0011,42112.0,42111.0,1.51485877]
[1646341898130,0.0011,42112.0,42111.0,0.83466715]
[1646341898331,0.0011,42112.0,42111.0,1.51485877]
[1646341898785,0.0011,42112.0,42111.0,1.15227477]
[1646341899484,0.0011,42112.0,42111.0,0.7125]
[1646341900383,0.0011,42112.0,42111.0,0.83466715]
[1646341901387,0.05815023,42122.0,42111.0,0.83466715]
[1646341901583,0.05315023,42122.0,42111.0,1.02892574]
[1646341901781,0.05315023,42122.0,42111.0,0.7125]
[1646341902424,0.362584,42121.0,42111.0,0.7125]
[1646341902624,0.05315023,42122.0,42111.0,0.7125]
[1646341903726,0.362584,42121.0,42111.0,0.7125]
[1646341903932,0.15,42116.0,42111.0,0.7125]
[1646341904129,0.505488,42115.0,42111.0,0.7125]
[1646341904328,0.02382,42112.0,42111.0,0.7125]
[1646341904527,0.429004,42112.0,42111.0,0.7125]
[1646341904728,0.429004,42112.0,42111.0,0.71263796]
[1646341905126,0.429004,42112.0,42111.0,0.71291388]
[1646341905727,0.429004,42112.0,42111.0,0.71263796]
[1646341906077,0.429004,42112.0,42111.0,0.7125]
[1646341907480,0.432004,42112.0,42111.0,0.7125]
[1646341907697,0.178285,42111.0,42109.0,0.00013796]
[1646341907879,0.319559,42110.0,42109.0,0.00013796]
[1646341908079,0.307689,42110.0,42109.0,0.00013796]
[1646341908279,0.407689,42110.0,42109.0,0.00027592]
[1646341908479,0.407689,42110.0,42109.0,0.00041388]
[1646341908680,0.407689,42110.0,42109.0,0.00027592]
[1646341908881,0.078043,42107.0,42095.0,0.25742064]
[1646341909084,0.410384,42106.0,42095.0,0.18601695]
[1646341909279,0.410384,42106.0,42099.0,0.00012247]
[1646341909280,0.0478,42106.0,42099.0,0.00012247]
[1646341909483,0.362584,42105.0,42099.0,0.00012247]
[1646341909680,0.078043,42107.0,42099.0,0.00012247]
[1646341909681,0.241269,42103.0,42099.0,0.00024494]
[1646341909930,0.0478,42103.0,42099.0,0.00036741]
[1646341910131,0.362584,42102.0,42099.0,0.00036741]
[1646341910332,0.362584,42102.0,42099.0,0.00024494]
[1646341910528,0.362584,42102.0,42097.0,0.09993755]
[1646341910729,0.0478,42103.0,42098.0,0.00012247]
[1646341911130,0.362584,42102.0,42098.0,0.00024494]
[1646341911331,0.107222,42103.0,42098.0,0.00036741]
[1646341911530,0.110222,42103.0,42098.0,0.00036741]
[1646341911733,0.110222,42103.0,42098.0,0.00024494]
[1646341911931,0.110222,42103.0,42095.0,0.28722562]
[1646341912130,0.110222,42103.0,42098.0,6.911e-05]
[1646341912731,0.110222,42103.0,42098.0,0.00020733]
[1646341912929,0.362584,42102.0,42098.0,0.00020733]
[1646341913131,0.362584,42100.0,42098.0,0.00013822]
[1646341913330,0.362584,42102.0,42098.0,6.911e-05]
[1646341913574,0.002,42102.0,42089.0,0.32829574]
[1646341913781,0.002,42102.0,42097.0,6.911e-05]
[1646341913974,0.002,42102.0,42097.0,0.00013822]
[1646341914176,0.002,42102.0,42097.0,0.00020733]
[1646341914575,0.362584,42101.0,42097.0,0.00013822]
[1646341914776,0.362584,42101.0,42097.0,6.911e-05]
[1646341914979,0.107222,42103.0,42095.0,0.18625265]
[1646341915176,0.362584,42102.0,42097.0,6.911e-05]
[1646341915576,0.107222,42103.0,42097.0,0.00020733]
[1646341915775,0.362584,42102.0,42097.0,0.00020733]
[1646341916175,0.362584,42102.0,42097.0,6.911e-05]
[1646341916375,0.362584,42102.0,42095.0,0.18825265]
[1646341916575,0.107222,42103.0,42097.0,0.00013783]
[1646341916776,0.362584,42102.0,42097.0,0.00013783]
[1646341917079,0.362584,42102.0,42097.0,0.00041349]
[1646341917527,0.362584,42101.0,42097.0,0.00127566]
[1646341917726,0.107222,42103.0,42097.0,0.001]
[1646341917727,0.362584,42100.0,42097.0,0.001]
[1646341917926,0.362584,42102.0,42097.0,0.00113783]
[1646341918529,0.362584,42102.0,42097.0,0.00141349]
[1646341918729,0.362584,42102.0,42097.0,0.00041349]
[1646341919027,0.107222,42103.0,42097.0,0.00027566]
[1646341919028,0.241269,42100.0,42097.0,0.00027566]
[1646341919230,0.107222,42103.0,42091.0,0.49897442]
[1646341919426,0.107222,42103.0,42091.0,0.31642574]
[1646341919629,0.003,42102.0,42091.0,0.31642574]
[1646341919827,0.0478,42101.0,42091.0,0.31642574]
[1646341920027,0.0478,42101.0,42096.0,0.19610062]
[1646341920228,0.0478,42101.0,42091.0,0.31642574]
[1646341920527,0.0478,42101.0,42091.0,0.52667581]
[1646341920828,0.0478,42101.0,42090.0,0.71267]
[1646341921078,0.0478,42101.0,42091.0,0.31642574]
[1646341921979,0.0478,42101.0,42092.0,0.13124364]
[1646341922282,0.0478,42101.0,42093.0,0.05293072]
[1646341923485,0.23,42105.0,42094.0,0.50256392]
[1646341923682,0.23,42105.0,42095.0,0.362584]
[1646341923881,0.23,42105.0,42095.0,0.71280697]
[1646341924281,0.23,42105.0,42100.0,0.06078315]
[1646341924485,0.001,42106.0,42103.0,0.16904191]
[1646341924683,0.362584,42105.0,42104.0,0.71252]
[1646341924949,0.362584,42111.0,42104.0,0.71252]
[1646341925352,0.362584,42111.0,42104.0,1.02894574]
[1646341925549,0.362584,42111.0,42110.0,0.1782619]
[1646341925747,0.362584,42111.0,42105.0,0.00013694]
[1646341926046,0.362584,42111.0,42110.0,0.71242]
[1646341927448,0.362584,42111.0,42110.0,0.71234852]
[1646341931725,0.67900974,42111.0,42110.0,0.71234852]
[1646341932536,0.88590816,42111.0,42110.0,0.71234852]
[1646341933734,0.67900974,42111.0,42110.0,0.71234852]
[1646341934135,0.362584,42111.0,42110.0,0.71234852]
[1646341939483,0.357584,42111.0,42110.0,0.71234852]
[1646341939686,0.357584,42111.0,42110.0,0.70734852]
[1646341939687,0.360584,42111.0,42110.0,0.70734852]
[1646341940929,0.357584,42111.0,42110.0,0.70734852]
[1646341943580,0.360584,42111.0,42110.0,0.70734852]
[1646341944984,0.357584,42111.0,42110.0,0.70734852]
[1646341945582,0.360584,42111.0,42110.0,0.70734852]
[1646341946987,0.357584,42111.0,42110.0,0.70734852]
[1646341947644,0.360584,42111.0,42110.0,0.70734852]
[1646341948644,0.350584,42111.0,42110.0,0.70734852]
[1646341948844,0.347584,42111.0,42110.0,0.70734852]
[1646341949646,0.0634,42116.0,42110.0,0.70734852]
[1646341949944,0.004,42116.0,42112.0,0.15676302]
[1646341950147,0.004,42116.0,42113.0,0.71744]
[1646341951081,0.362435,42119.0,42113.0,0.71744]
[1646341951282,0.059394,42120.0,42113.0,0.71744]
[1646341952079,0.362435,42119.0,42113.0,0.71744]
[1646341952279,0.059394,42120.0,42113.0,0.71744]
[1646341952280,0.362435,42118.0,42113.0,0.71744]
[1646341952481,0.362435,42119.0,42114.0,9.875e-05]
[1646341952881,0.362435,42119.0,42114.0,0.00029625]
[1646341953080,0.357435,42119.0,42114.0,0.00029625]
[1646341953281,0.357435,42119.0,42114.0,0.0001975]
[1646341953483,0.357435,42119.0,42114.0,9.875e-05]
[1646341953686,0.357435,42119.0,42113.0,0.71744]
[1646341953882,0.059394,42120.0,42114.0,9.875e-05]
[1646341954282,0.059394,42120.0,42114.0,0.0001975]
[1646341954484,0.03090386,42120.0,42114.0,0.00029625]
[1646341954685,0.03090386,42120.0,42116.0,0.1718896]
[1646341955131,0.03090386,42120.0,42114.0,0.125035]
[1646341955337,0.03090386,42120.0,42116.0,0.00013625]
[1646341955533,0.00013844,42122.0,42116.0,0.00013625]
[1646341955734,0.00027688,42122.0,42116.0,0.0002725]
[1646341955933,0.00041532,42122.0,42120.0,0.17083519]
[1646341956237,0.00027688,42122.0,42116.0,0.0002725]
[1646341956434,0.00013844,42122.0,42116.0,0.00013625]
[1646341956632,0.0021,42123.0,42117.0,0.00013625]
[1646341956833,0.362405,42122.0,42117.0,0.00013625]
[1646341957033,0.22165389,42122.0,42117.0,0.00013625]
[1646341957235,0.00053367,42122.0,42117.0,0.00040875]
[1646341957435,0.00053367,42122.0,42121.0,0.20522399]
[1646341957636,0.36593867,42122.0,42121.0,0.20522399]
[1646341957834,0.36576078,42122.0,42117.0,0.0002725]
[1646341958035,0.003,42122.0,42114.0,0.31513176]
[1646341958886,0.00030584,42122.0,42115.0,0.17279586]
[1646341959083,0.362405,42121.0,42120.0,0.17289227]
[1646341959682,0.365405,42121.0,42120.0,0.17289227]
[1646341960283,0.365405,42121.0,42114.0,0.31513176]
[1646341960483,0.365405,42121.0,42113.0,0.71744]
[1646341960484,0.003,42121.0,42113.0,0.71744]
[1646341960886,0.059392,42122.0,42113.0,0.71744]
[1646341961386,0.362405,42121.0,42117.0,0.17114349]
[1646341961984,0.05976463,42122.0,42117.0,0.17114349]
[1646341962184,0.362405,42121.0,42113.0,0.72044]
[1646341962432,0.05976463,42122.0,42113.0,0.72044]
[1646341962433,0.05951621,42122.0,42113.0,0.72044]
[1646341962631,0.059392,42122.0,42113.0,0.72044]
[1646341962832,0.059392,42122.0,42115.0,0.00013067]
[1646341963233,0.05968698,42122.0,42121.0,0.15874043]
[1646341963434,0.42223947,42122.0,42121.0,0.15874043]
[1646341963633,0.06183447,42122.0,42121.0,0.15874043]
[1646341963835,0.06168698,42122.0,42121.0,0.15874043]
[1646341964037,0.00214749,42122.0,42121.0,0.15874043]
[1646341964234,0.002,42122.0,42121.0,0.15874043]
[1646341964634,0.057586,42126.0,42121.0,0.35168145]
[1646341964833,0.0003245,42124.0,42121.0,0.35168145]
[1646341965033,0.00048675,42124.0,42121.0,0.35168145]
[1646341965437,0.00016225,42124.0,42122.0,0.31513176]
[1646341965635,0.057586,42126.0,42121.0,0.35368145]
[1646341966088,0.0021,42126.0,42123.0,0.362405]
[1646341966287,0.00015959,42125.0,42124.0,0.71725]
[1646341966488,0.00047877,42125.0,42124.0,1.41009272]
[1646341966883,0.00031918,42125.0,42124.0,1.41009272]
[1646341967083,0.00015959,42125.0,42124.0,1.41009272]
[1646341967387,0.002,42129.0,42126.0,0.386225]
[1646341967584,0.001,42130.0,42128.0,0.362405]
[1646341967785,0.001,42130.0,42129.0,1.098795]
[1646341967984,0.001,42130.0,42129.0,1.2935219]
[1646341968184,0.001,42130.0,42129.0,1.40255337]
[1646341968584,0.001,42130.0,42129.0,1.2935219]
[1646341969684,0.001,42130.0,42129.0,1.2975219]
[1646341970141,0.001,42130.0,42129.0,1.28054008]
[1646341970339,0.470325,42144.0,42131.0,0.75]
[1646341970537,0.470325,42144.0,42132.0,0.37382462]
[1646341970737,0.7142,42145.0,42132.0,0.33617626]
[1646341970940,0.0012495,42138.0,42133.0,0.362405]
[1646341971138,0.0012495,42138.0,42134.0,0.75328]
[1646341971139,0.00187425,42138.0,42134.0,0.75328]
[1646341971440,0.00187425,42138.0,42137.0,0.15619647]
[1646341971640,0.00062475,42138.0,42137.0,0.90942647]
[1646341971841,0.2409,42145.0,42137.0,0.90942647]
[1646341971842,0.362405,42142.0,42137.0,0.90942647]
[1646341972038,0.002,42143.0,42137.0,0.90942647]
[1646341972238,0.219229,42142.0,42137.0,0.90942647]
[1646341972439,0.00031242,42140.0,42137.0,0.75323]
[1646341972639,0.00046863,42140.0,42137.0,0.75323]
[1646341973038,0.00031242,42140.0,42137.0,0.75323]
[1646341973238,0.00015621,42140.0,42137.0,0.75323]
[1646341973439,0.362273,42141.0,42137.0,0.75323]
[1646341973682,0.004,42140.0,42137.0,0.75323]
[1646341973882,0.219228,42139.0,42137.0,0.75323]
[1646341974486,0.362273,42138.0,42137.0,0.75323]
[1646341975492,0.410073,42138.0,42137.0,0.75323]
[1646341975688,0.59285002,42138.0,42137.0,0.75323]
[1646341976487,0.59285002,42138.0,42137.0,0.60003]
[1646341976488,0.64855808,42138.0,42137.0,0.60003]
[1646341976687,0.59285002,42138.0,42137.0,0.60003]
[1646341977736,0.59285002,42138.0,42137.0,0.45813]
[1646341977935,0.02382,42136.0,42125.0,0.00047876]
[1646341978134,0.02382,42136.0,42118.0,0.01186]
[1646341978135,0.02382,42132.0,42118.0,0.0074091]
[1646341978335,0.02382,42128.0,42119.0,7.034e-05]
[1646341978533,0.267028,42127.0,42119.0,0.00014068]
[1646341979032,0.267028,42127.0,42119.0,7.034e-05]
[1646341979033,0.362273,42125.0,42119.0,7.034e-05]
[1646341979234,0.059395,42122.0,42109.0,0.01186]
[1646341979533,0.059395,42122.0,42115.0,0.20824808]
[1646341979736,0.362273,42121.0,42115.0,0.20824808]
[1646341980137,0.362273,42121.0,42114.0,0.002]
[1646341980737,0.0478,42120.0,42114.0,0.002]
[1646341980935,0.0478,42120.0,42110.0,0.71233]
[1646341980936,0.219228,42119.0,42110.0,0.71233]
[1646341981204,0.1556407,42116.0,42110.0,0.71233]
[1646341981399,0.410073,42115.0,42110.0,0.71233]
[1646341981598,0.219228,42113.0,42110.0,0.71233]
[1646341981800,0.0478,42112.0,42110.0,0.71233]
[1646341982003,0.362273,42111.0,42110.0,0.71233]
[1646341983806,0.365273,42111.0,42110.0,0.71233]
[1646341984003,0.413073,42111.0,42110.0,0.71233]
[1646341984852,0.413073,42111.0,42110.0,0.70733]
[1646341985054,0.410073,42111.0,42110.0,0.70733]
[1646341985753,0.413073,42111.0,42110.0,0.70733]
[1646341987054,0.410073,42111.0,42110.0,0.70733]
[1646341988057,0.243048,42106.0,42100.0,0.01187]
[1646341988255,0.1666646,42105.0,42100.0,0.01187]
[1646341988454,0.1666646,42105.0,42085.0,0.30827002]
[1646341988455,0.386093,42104.0,42085.0,0.30827002]
[1646341988687,0.22954719,42103.0,42081.0,0.2329]
[1646341988887,0.35607002,42102.0,42082.0,0.340539]
[1646341989089,0.35607002,42102.0,42091.0,0.09373521]
[1646341989090,0.362273,42100.0,42091.0,0.09373521]
[1646341989286,0.219228,42098.0,42091.0,0.09373521]
[1646341989487,0.0478,42098.0,42091.0,0.09373521]
[1646341989689,0.410073,42098.0,42097.0,0.07318391]
[1646341990795,0.410073,42098.0,42091.0,0.003]
[1646341990991,0.0478,42098.0,42083.0,0.33279195]
[1646341991191,0.059435,42095.0,42088.0,0.16702647]
[1646341991392,0.059435,42095.0,42083.0,0.30779195]
[1646341991592,0.059435,42095.0,42088.0,0.00014026]
[1646341991896,0.362273,42097.0,42089.0,0.06476653]
[1646341992092,0.362273,42096.0,42089.0,0.06476653]
[1646341992346,0.059431,42095.0,42089.0,0.06476653]
[1646341992948,0.362273,42094.0,42090.0,0.13096425]
[1646341993546,0.362273,42094.0,42090.0,0.1311045]
[1646341993847,0.059431,42095.0,42090.0,0.13124475]
[1646341994047,0.362273,42094.0,42090.0,0.1311045]
[1646341994246,0.362273,42094.0,42090.0,0.130824]
[1646341994446,0.059431,42095.0,42090.0,0.130824]
[1646341994646,0.362273,42094.0,42090.0,0.13095821]
[1646341995147,0.362273,42094.0,42090.0,0.00040263]
[1646341995348,0.219228,42092.0,42090.0,0.00040263]
[1646341995551,0.0478,42091.0,42090.0,0.00026842]
[1646341995749,0.0478,42091.0,42078.0,0.31071628]
[1646341995750,0.410073,42091.0,42084.0,0.02382]
[1646341995948,0.410073,42091.0,42089.0,0.29217541]
[1646341995949,0.0478,42091.0,42089.0,0.29217541]
[1646341996388,0.0478,42091.0,42090.0,0.06101888]
[1646341996683,0.410073,42091.0,42090.0,0.06101888]
[1646341996883,0.0478,42091.0,42090.0,0.06101888]
[1646341997084,0.410073,42091.0,42090.0,0.06101888]
[1646341997282,0.410073,42091.0,42090.0,0.24871616]
[1646341997683,0.0478,42091.0,42090.0,0.24871616]
[1646341997984,0.410073,42091.0,42090.0,0.25171616]
[1646341998384,0.059431,42095.0,42090.0,0.25171616]
[1646341998582,0.216451,42094.0,42090.0,0.25171616]
[1646341998783,0.216451,42094.0,42091.0,0.17813551]
[1646341998985,0.216451,42094.0,42090.0,0.24871616]
[1646341999186,0.362549,42093.0,42090.0,0.24879867]
[1646341999586,0.362549,42093.0,42090.0,0.24888118]
[1646341999831,0.362549,42093.0,42090.0,0.25196369]
[1646342000031,0.362549,42093.0,42090.0,0.42992973]
[1646342000241,0.0478,42096.0,42090.0,0.25179867]
[1646342000433,0.0478,42096.0,42090.0,0.25171616]
[1646342000635,0.23837,42101.0,42094.0,0.0939362]
[1646342000943,0.362549,42106.0,42095.0,0.30848126]
[1646342001136,0.01187,42110.0,42099.0,0.21797779]
[1646342001337,0.2455,42114.0,42099.0,0.21797779]
[1646342001535,0.2455,42114.0,42103.0,0.12724086]
[1646342001733,0.2455,42114.0,42107.0,0.17878431]
[1646342001734,0.362549,42113.0,42107.0,0.17878431]
[1646342002133,0.362549,42113.0,42108.0,8.247e-05]
[1646342002538,0.11881,42118.0,42108.0,8.247e-05]
[1646342002738,0.11881,42118.0,42110.0,0.06354245]
[1646342002935,0.362549,42117.0,42114.0,0.18549943]
[1646342003789,0.11881,42118.0,42106.0,0.16481321]
[1646342003987,0.11881,42118.0,42104.0,0.30848126]
[1646342004588,0.11881,42118.0,42107.0,0.11382989]
[1646342004789,0.11881,42118.0,42113.0,0.20039779]
[1646342006590,0.11881,42118.0,42113.0,0.20050523]
[1646342006991,0.0594,42119.0,42113.0,0.20072011]
[1646342007832,0.0614,42119.0,42113.0,0.20050523]
[1646342008033,0.0614,42119.0,42113.0,0.20039779]
[1646342008232,0.0614,42119.0,42114.0,0.00010743]